{"text_format":"3","workbook":"xlsx","n_sheets":1,"sheets":["הצעה"],"not_rendered":{"images":1,"defined_names":20},"read":"whole","date_system":"1900"}

{"sheet":"הצעה","index":0,"n_rows":39,"n_cols":7,"rows_kept":39,"merged":[[0,1,3,1],[0,3,0,6],[1,4,1,6],[2,4,2,6],[32,3,35,4],[36,3,36,6],[37,3,37,5],[38,3,38,5]]}
[{"$nulls":3},"הצעה לבנייה"]
[{"$nulls":3},"שם החברה","| הזן את כתובת החברה בתא זה"]
[{"$nulls":3},"טלפון","| הזן את מספר הפקס של החברה ואת כתובת הדואר האלקטרוני של איש הקשר בתא זה"]
[{"$nulls":3},"כמות","תיאור","מחיר ליחידה","סכום"]
[null,"לקוח",null,10,"פריט 1",{"v":165,"d":"₪ 165.00"},{"$f":"IFERROR(LineItems[[#This Row],[כמות]]*LineItems[[#This Row],[מחיר ליחידה]], \"\")","v":{"v":1650,"d":"₪ 1,650.00"}}]
[null,"הזן את שם הלקוח בתא זה",null,21,"פריט 2",{"v":40,"d":"₪ 40.00"},{"$f":"IFERROR(LineItems[[#This Row],[כמות]]*LineItems[[#This Row],[מחיר ליחידה]], \"\")","v":{"v":840,"d":"₪ 840.00"}}]
[null,"מס' הערכה",null,5,"פריט 3",{"v":10.5,"d":"₪ 10.50"},{"$f":"IFERROR(LineItems[[#This Row],[כמות]]*LineItems[[#This Row],[מחיר ליחידה]], \"\")","v":{"v":52.5,"d":"₪ 52.50"}}]
[null,"ג-1234",null,164,"פריט 4",{"v":2.75,"d":"₪ 2.75"},{"$f":"IFERROR(LineItems[[#This Row],[כמות]]*LineItems[[#This Row],[מחיר ליחידה]], \"\")","v":{"v":451,"d":"₪ 451.00"}}]
[null,"תאריך",null,6,"פריט 5",{"v":12,"d":"₪ 12.00"},{"$f":"IFERROR(LineItems[[#This Row],[כמות]]*LineItems[[#This Row],[מחיר ליחידה]], \"\")","v":{"v":72,"d":"₪ 72.00"}}]
[null,{"$f":"TODAY()","v":"2018-11-16"},null,18,"פריט 6",{"v":5.5,"d":"₪ 5.50"},{"$f":"IFERROR(LineItems[[#This Row],[כמות]]*LineItems[[#This Row],[מחיר ליחידה]], \"\")","v":{"v":99,"d":"₪ 99.00"}}]
[null,"כתובת",null,1,"פריט 7",{"v":25,"d":"₪ 25.00"},{"$f":"IFERROR(LineItems[[#This Row],[כמות]]*LineItems[[#This Row],[מחיר ליחידה]], \"\")","v":{"v":25,"d":"₪ 25.00"}}]
[null,"הזן את כתובת הלקוח בתא זה",{"$nulls":4},{"$f":"IFERROR(LineItems[[#This Row],[כמות]]*LineItems[[#This Row],[מחיר ליחידה]], \"\")","v":{"v":0,"d":"₪ 0.00"}}]
[null,"עיר/מיקוד",{"$nulls":4},{"$f":"IFERROR(LineItems[[#This Row],[כמות]]*LineItems[[#This Row],[מחיר ליחידה]], \"\")","v":{"v":0,"d":"₪ 0.00"}}]
[null,"הזן את העיר והמיקוד של הלקוח בתא זה",{"$nulls":4},{"$f":"IFERROR(LineItems[[#This Row],[כמות]]*LineItems[[#This Row],[מחיר ליחידה]], \"\")","v":{"v":0,"d":"₪ 0.00"}}]
[null,"טלפון",{"$nulls":4},{"$f":"IFERROR(LineItems[[#This Row],[כמות]]*LineItems[[#This Row],[מחיר ליחידה]], \"\")","v":{"v":0,"d":"₪ 0.00"}}]
[null,"הזן את מספר הטלפון של הלקוח בתא זה",{"$nulls":4},{"$f":"IFERROR(LineItems[[#This Row],[כמות]]*LineItems[[#This Row],[מחיר ליחידה]], \"\")","v":{"v":0,"d":"₪ 0.00"}}]
[null,"דואר אלקטרוני",{"$nulls":4},{"$f":"IFERROR(LineItems[[#This Row],[כמות]]*LineItems[[#This Row],[מחיר ליחידה]], \"\")","v":{"v":0,"d":"₪ 0.00"}}]
[null,"הזן את כתובת הדואר האלקטרוני של הלקוח בתא זה",{"$nulls":4},{"$f":"IFERROR(LineItems[[#This Row],[כמות]]*LineItems[[#This Row],[מחיר ליחידה]], \"\")","v":{"v":0,"d":"₪ 0.00"}}]
[null,"נציג מכירות",{"$nulls":4},{"$f":"IFERROR(LineItems[[#This Row],[כמות]]*LineItems[[#This Row],[מחיר ליחידה]], \"\")","v":{"v":0,"d":"₪ 0.00"}}]
[null,"הזן את שם נציג המכירות בתא זה",{"$nulls":4},{"$f":"IFERROR(LineItems[[#This Row],[כמות]]*LineItems[[#This Row],[מחיר ליחידה]], \"\")","v":{"v":0,"d":"₪ 0.00"}}]
[null,"פרוייקט",{"$nulls":4},{"$f":"IFERROR(LineItems[[#This Row],[כמות]]*LineItems[[#This Row],[מחיר ליחידה]], \"\")","v":{"v":0,"d":"₪ 0.00"}}]
[null,"הזן את שם הפרוייקט בתא זה",{"$nulls":4},{"$f":"IFERROR(LineItems[[#This Row],[כמות]]*LineItems[[#This Row],[מחיר ליחידה]], \"\")","v":{"v":0,"d":"₪ 0.00"}}]
[null,"הוכן על-ידי:",{"$nulls":4},{"$f":"IFERROR(LineItems[[#This Row],[כמות]]*LineItems[[#This Row],[מחיר ליחידה]], \"\")","v":{"v":0,"d":"₪ 0.00"}}]
[null,"הזן את שם האדם שהכין את ההצעה בתא זה",{"$nulls":4},{"$f":"IFERROR(LineItems[[#This Row],[כמות]]*LineItems[[#This Row],[מחיר ליחידה]], \"\")","v":{"v":0,"d":"₪ 0.00"}}]
[null,"לידי",{"$nulls":4},{"$f":"IFERROR(LineItems[[#This Row],[כמות]]*LineItems[[#This Row],[מחיר ליחידה]], \"\")","v":{"v":0,"d":"₪ 0.00"}}]
[null,"הזן את השם והכתובת עבור ההצעה בתא זה",{"$nulls":4},{"$f":"IFERROR(LineItems[[#This Row],[כמות]]*LineItems[[#This Row],[מחיר ליחידה]], \"\")","v":{"v":0,"d":"₪ 0.00"}}]
[null,"תנאי תשלום",{"$nulls":4},{"$f":"IFERROR(LineItems[[#This Row],[כמות]]*LineItems[[#This Row],[מחיר ליחידה]], \"\")","v":{"v":0,"d":"₪ 0.00"}}]
[null,"שוטף+30",{"$nulls":4},{"$f":"IFERROR(LineItems[[#This Row],[כמות]]*LineItems[[#This Row],[מחיר ליחידה]], \"\")","v":{"v":0,"d":"₪ 0.00"}}]
[null,"תאריך יעד",{"$nulls":4},{"$f":"IFERROR(LineItems[[#This Row],[כמות]]*LineItems[[#This Row],[מחיר ליחידה]], \"\")","v":{"v":0,"d":"₪ 0.00"}}]
[null,{"$f":"TODAY()+30","v":"2018-12-16"},{"$nulls":4},{"$f":"IFERROR(LineItems[[#This Row],[כמות]]*LineItems[[#This Row],[מחיר ליחידה]], \"\")","v":{"v":0,"d":"₪ 0.00"}}]
[{"$nulls":5},"סכום ביניים",{"$f":"SUBTOTAL(109,LineItems[סכום])","v":{"v":3189.5,"d":"₪ 3,189.50"}}]
[{"$nulls":3},"הצעה זו כוללת את התנאים שמצוינים להלן:",null,"שיעור מס ",{"v":0.0775,"d":"7.75%"}]
[{"$nulls":3},"הזן את התנאים כאן",null,"מע\"מ ",{"$f":"IFERROR(סכום_ביניים*שיעור_מס, \"\")","v":{"v":247.18625,"d":"₪ 247.19"}}]
[{"$nulls":5},"אחר "]
[{"$nulls":5},"סה\"כ",{"$f":"IFERROR(סכום_ביניים+G33+אחר, \"\")","v":{"v":3436.68625,"d":"₪ 3,436.69"}}]
[]
[{"$nulls":3},"חתום להלן כדי לקבל את הצעת המחיר:"]
[]
[{"$nulls":3},"נציג מורשה",null,null,"תאריך"]